[Event "*** SCC Grand Prix: Titled Tuesday Blitz"]
[Site "Chess.com"]
[Date "2020.07.14"]
[Round "2"]
[White "vaishali2001"]
[Black "Bastiandash"]
[Result "1-0"]
[WhiteElo "2619"]
[BlackElo "2324"]
[TimeControl "180+1"]
[EndTime "10:17:08 PDT"]
[Termination "vaishali2001 won on time"]

1. c4 {[%clk 0:03:00.9]} 1... Nf6 {[%clk 0:02:59.3]} 2. Nf3 {[%clk 0:02:59.4]}
2... e6 {[%clk 0:02:56.5]} 3. g3 {[%clk 0:02:54.9]} 3... d5 {[%clk 0:02:56.4]}
4. b3 {[%clk 0:02:54.6]} 4... b6 {[%clk 0:02:43.1]} 5. Bg2 {[%clk 0:02:54]} 5...
Bb7 {[%clk 0:02:43.1]} 6. O-O {[%clk 0:02:53.5]} 6... d4 {[%clk 0:02:37.8]} 7.
e3 {[%clk 0:02:47.3]} 7... dxe3 {[%clk 0:02:20.8]} 8. dxe3 {[%clk 0:02:44.9]}
8... Qxd1 {[%clk 0:02:21.7]} 9. Rxd1 {[%clk 0:02:45.4]} 9... Be7 {[%clk
0:02:22.3]} 10. Nc3 {[%clk 0:02:28.9]} 10... Nbd7 {[%clk 0:02:15.1]} 11. Nb5
{[%clk 0:02:26.6]} 11... Bd8 {[%clk 0:02:06.9]} 12. Nfd4 {[%clk 0:02:12]} 12...
Bxg2 {[%clk 0:02:01.2]} 13. Kxg2 {[%clk 0:02:12.9]} 13... a6 {[%clk 0:01:54.9]}
14. Nc3 {[%clk 0:02:10]} 14... O-O {[%clk 0:01:45.2]} 15. Nc6 {[%clk 0:02:08.6]}
15... Nc5 {[%clk 0:01:39.1]} 16. Ba3 {[%clk 0:02:04.1]} 16... Re8 {[%clk
0:01:00.8]} 17. Bxc5 {[%clk 0:01:49.3]} 17... bxc5 {[%clk 0:01:01.7]} 18. Na4
{[%clk 0:01:49.3]} 18... Ne4 {[%clk 0:00:49.8]} 19. f3 {[%clk 0:01:44.8]} 19...
Nd6 {[%clk 0:00:46.7]} 20. e4 {[%clk 0:01:39]} 20... Nb7 {[%clk 0:00:40.3]} 21.
Rd7 {[%clk 0:01:36]} 21... Rc8 {[%clk 0:00:26.5]} 22. Rad1 {[%clk 0:01:34.4]}
22... Bg5 {[%clk 0:00:20.1]} 23. f4 {[%clk 0:01:25.6]} 23... Bf6 {[%clk
0:00:18.3]} 24. e5 {[%clk 0:01:24.3]} 24... Bd8 {[%clk 0:00:17.6]} 25. Kf3
{[%clk 0:01:19.4]} 25... Kf8 {[%clk 0:00:12.4]} 26. Rb1 {[%clk 0:01:14.2]} 26...
a5 {[%clk 0:00:08.2]} 27. a3 {[%clk 0:01:10.8]} 27... Be7 {[%clk 0:00:08]} 28.
Rbd1 {[%clk 0:01:06.4]} 28... g6 {[%clk 0:00:04.9]} 29. R1d3 {[%clk 0:01:02]}
29... h5 {[%clk 0:00:04.7]} 30. h4 {[%clk 0:01:00.7]} 30... Nd8 {[%clk
0:00:02.2]} 31. Nxe7 {[%clk 0:00:56.9]} 1-0

[Event "*** SCC Grand Prix: Titled Tuesday Blitz"]
[Site "Chess.com"]
[Date "2020.07.14"]
[Round "2"]
[White "AndrewMaco"]
[Black "Sacbutt"]
[Result "1-0"]
[WhiteElo "2610"]
[BlackElo "2298"]
[TimeControl "180+1"]
[EndTime "10:17:12 PDT"]
[Termination "AndrewMaco won by resignation"]

1. e4 {[%clk 0:03:00.9]} 1... c5 {[%clk 0:02:59.6]} 2. Nf3 {[%clk 0:02:57.5]}
2... d6 {[%clk 0:03:00]} 3. d4 {[%clk 0:02:56.9]} 3... cxd4 {[%clk 0:03:00.9]}
4. Nxd4 {[%clk 0:02:57.8]} 4... Nf6 {[%clk 0:03:00.9]} 5. Nc3 {[%clk 0:02:57.8]}
5... a6 {[%clk 0:03:01.5]} 6. f3 {[%clk 0:02:57.8]} 6... e5 {[%clk 0:03:01.6]}
7. Nb3 {[%clk 0:02:58.3]} 7... Be6 {[%clk 0:03:02.2]} 8. Be3 {[%clk 0:02:58.8]}
8... Nbd7 {[%clk 0:03:02.8]} 9. Nd5 {[%clk 0:02:59.1]} 9... Bxd5 {[%clk
0:03:00]} 10. exd5 {[%clk 0:03:00]} 10... Be7 {[%clk 0:02:58]} 11. Qd2 {[%clk
0:03:00]} 11... O-O {[%clk 0:02:57.4]} 12. Be2 {[%clk 0:02:59]} 12... b5 {[%clk
0:02:57.3]} 13. Na5 {[%clk 0:02:56.7]} 13... Qc7 {[%clk 0:02:53.2]} 14. Nc6
{[%clk 0:02:54.8]} 14... Rfe8 {[%clk 0:02:45.9]} 15. O-O-O {[%clk 0:02:51.1]}
15... Nb6 {[%clk 0:02:39.8]} 16. Bxb6 {[%clk 0:02:47.1]} 16... Qxb6 {[%clk
0:02:38.9]} 17. Kb1 {[%clk 0:02:44.1]} 17... Rac8 {[%clk 0:02:38.4]} 18. h4
{[%clk 0:02:15]} 18... Nxd5 {[%clk 0:02:22.5]} 19. Nxe7+ {[%clk 0:02:14.9]}
19... Nxe7 {[%clk 0:02:21.4]} 20. Qxd6 {[%clk 0:02:15.4]} 20... Qf2 {[%clk
0:01:33.2]} 21. Bd3 {[%clk 0:02:10.7]} 21... Qxg2 {[%clk 0:01:28.7]} 22. Rhg1
{[%clk 0:02:02.9]} 22... Qxf3 {[%clk 0:01:23.4]} 23. Rdf1 {[%clk 0:02:03.1]}
23... Qd5 {[%clk 0:01:16.6]} 24. Qxa6 {[%clk 0:02:03.1]} 24... Ra8 {[%clk
0:01:05.3]} 25. Qxb5 {[%clk 0:02:00.2]} 25... Qxa2+ {[%clk 0:00:57.8]} 26. Kc1
{[%clk 0:02:00.2]} 26... Rab8 {[%clk 0:00:32]} 27. Bc4 {[%clk 0:01:48]} 27...
Qa1+ {[%clk 0:00:25.7]} 28. Kd2 {[%clk 0:01:48.4]} 28... Red8+ {[%clk
0:00:24.4]} 29. Ke2 {[%clk 0:01:45.7]} 29... Rxb5 {[%clk 0:00:23.7]} 30. Rxa1
{[%clk 0:01:43.7]} 30... Rxb2 {[%clk 0:00:24]} 31. Bb3 {[%clk 0:01:36.1]} 31...
Nd5 {[%clk 0:00:21.4]} 32. Rgf1 {[%clk 0:01:30.3]} 32... Kf8 {[%clk 0:00:19.7]}
33. Ra7 {[%clk 0:01:29]} 33... f6 {[%clk 0:00:19.2]} 34. Rfa1 {[%clk 0:01:26.7]}
34... Nf4+ {[%clk 0:00:17.9]} 35. Kf3 {[%clk 0:01:24.7]} 35... h5 {[%clk
0:00:16.5]} 36. Rf7+ {[%clk 0:01:23.9]} 36... Ke8 {[%clk 0:00:16.4]} 37. Rxg7
{[%clk 0:01:22.7]} 37... Rxb3+ {[%clk 0:00:14.3]} 38. cxb3 {[%clk 0:01:22.6]}
38... Rd3+ {[%clk 0:00:15.2]} 39. Ke4 {[%clk 0:01:23]} 39... Rd4+ {[%clk
0:00:14.9]} 40. Kf5 {[%clk 0:01:22.9]} 40... Kf8 {[%clk 0:00:14]} 41. Raa7
{[%clk 0:01:22]} 41... Nd5 {[%clk 0:00:13]} 42. Rgf7+ {[%clk 0:01:18.3]} 42...
Kg8 {[%clk 0:00:11.4]} 43. Rfb7 {[%clk 0:01:17.5]} 43... Rf4+ {[%clk 0:00:10.4]}
44. Kg6 {[%clk 0:01:16.6]} 44... Rg4+ {[%clk 0:00:07.1]} 45. Kxh5 {[%clk
0:01:17]} 45... Nf4+ {[%clk 0:00:04.2]} 46. Kxg4 {[%clk 0:01:16.8]} 1-0

[Event "*** SCC Grand Prix: Titled Tuesday Blitz"]
[Site "Chess.com"]
[Date "2020.07.14"]
[Round "2"]
[White "Alex_Molchanov"]
[Black "GM_Levan_Pantsulaia"]
[Result "0-1"]
[WhiteElo "2516"]
[BlackElo "2830"]
[TimeControl "180+1"]
[EndTime "10:17:13 PDT"]
[Termination "GM_Levan_Pantsulaia won by checkmate"]

1. d4 {[%clk 0:03:00.9]} 1... Nf6 {[%clk 0:02:59.1]} 2. Nf3 {[%clk 0:03:00.8]}
2... c5 {[%clk 0:02:58.2]} 3. e3 {[%clk 0:03:00]} 3... g6 {[%clk 0:02:54.9]} 4.
Be2 {[%clk 0:02:55.9]} 4... Bg7 {[%clk 0:02:54.9]} 5. O-O {[%clk 0:02:56.5]}
5... O-O {[%clk 0:02:53]} 6. d5 {[%clk 0:02:56.1]} 6... d6 {[%clk 0:02:51.1]} 7.
c4 {[%clk 0:02:56.4]} 7... e6 {[%clk 0:02:51.3]} 8. Nc3 {[%clk 0:02:56.4]} 8...
exd5 {[%clk 0:02:51.8]} 9. cxd5 {[%clk 0:02:57.3]} 9... Re8 {[%clk 0:02:52.2]}
10. h3 {[%clk 0:02:54.7]} 10... Na6 {[%clk 0:02:50.8]} 11. Nd2 {[%clk
0:02:51.5]} 11... Nc7 {[%clk 0:02:48.9]} 12. Nf3 {[%clk 0:02:44.4]} 12... a6
{[%clk 0:02:44.5]} 13. a4 {[%clk 0:02:44.4]} 13... Rb8 {[%clk 0:02:44.4]} 14. a5
{[%clk 0:02:41.7]} 14... Bd7 {[%clk 0:02:22.8]} 15. Re1 {[%clk 0:02:32.8]} 15...
Nb5 {[%clk 0:02:11]} 16. Bd2 {[%clk 0:02:28.7]} 16... Ne4 {[%clk 0:02:08.9]} 17.
Nxe4 {[%clk 0:02:25.1]} 17... Rxe4 {[%clk 0:02:09.8]} 18. Qc2 {[%clk 0:02:24]}
18... Re8 {[%clk 0:02:06.5]} 19. Bf1 {[%clk 0:02:20.1]} 19... Rc8 {[%clk
0:02:03.3]} 20. Bc3 {[%clk 0:02:10.6]} 20... Nc7 {[%clk 0:01:49.5]} 21. Bxg7
{[%clk 0:02:07]} 21... Kxg7 {[%clk 0:01:50.4]} 22. e4 {[%clk 0:02:07.2]} 22...
Qf6 {[%clk 0:01:49.4]} 23. Ra3 {[%clk 0:01:57.7]} 23... Bb5 {[%clk 0:01:42]} 24.
Rae3 {[%clk 0:01:50.4]} 24... Bxf1 {[%clk 0:01:41.6]} 25. Kxf1 {[%clk 0:01:51]}
25... Nb5 {[%clk 0:01:40.6]} 26. Qd2 {[%clk 0:01:37.6]} 26... Re7 {[%clk
0:01:38.9]} 27. e5 {[%clk 0:01:21.6]} 27... dxe5 {[%clk 0:01:38.8]} 28. Nxe5
{[%clk 0:01:22.3]} 28... Rce8 {[%clk 0:01:25.6]} 29. Nc4 {[%clk 0:01:21]} 29...
Nd4 {[%clk 0:01:11.7]} 30. d6 {[%clk 0:01:13]} 30... Rxe3 {[%clk 0:01:10.2]} 31.
Rxe3 {[%clk 0:01:13.9]} 31... Rd8 {[%clk 0:00:52.4]} 32. Qd3 {[%clk 0:01:01.1]}
32... Nf5 {[%clk 0:00:48.7]} 33. Re1 {[%clk 0:00:33.4]} 33... Nxd6 {[%clk
0:00:45.4]} 34. Rd1 {[%clk 0:00:22.2]} 34... Ne4 {[%clk 0:00:43.5]} 35. Qxd8
{[%clk 0:00:23.1]} 35... Qxf2# {[%clk 0:00:42.2]} 0-1

[Event "*** SCC Grand Prix: Titled Tuesday Blitz"]
[Site "Chess.com"]
[Date "2020.07.14"]
[Round "2"]
[White "LawrenceTrent"]
[Black "rpragchess"]
[Result "0-1"]
[WhiteElo "2509"]
[BlackElo "2810"]
[TimeControl "180+1"]
[EndTime "10:17:17 PDT"]
[Termination "rpragchess won by resignation"]

1. e4 {[%clk 0:03:00.9]} 1... c5 {[%clk 0:02:58.5]} 2. Nc3 {[%clk 0:02:59.9]}
2... Nc6 {[%clk 0:02:56]} 3. Bb5 {[%clk 0:03:00.1]} 3... Nd4 {[%clk 0:02:55.6]}
4. Nf3 {[%clk 0:03:00.5]} 4... e6 {[%clk 0:02:48]} 5. O-O {[%clk 0:03:00.2]}
5... a6 {[%clk 0:02:40.8]} 6. Bd3 {[%clk 0:02:59.8]} 6... Nc6 {[%clk 0:02:38.3]}
7. b3 {[%clk 0:02:58.3]} 7... Nf6 {[%clk 0:02:36.8]} 8. Re1 {[%clk 0:02:55.9]}
8... d6 {[%clk 0:02:37]} 9. Bb2 {[%clk 0:02:55.6]} 9... Be7 {[%clk 0:02:35.4]}
10. e5 {[%clk 0:02:53.7]} 10... dxe5 {[%clk 0:02:31.3]} 11. Nxe5 {[%clk
0:02:54.6]} 11... Nxe5 {[%clk 0:02:31.6]} 12. Rxe5 {[%clk 0:02:55.2]} 12... Bd7
{[%clk 0:02:32.3]} 13. Ne4 {[%clk 0:02:44.9]} 13... Qc7 {[%clk 0:02:26.6]} 14.
Qc1 {[%clk 0:02:25.7]} 14... Nd5 {[%clk 0:01:43.2]} 15. g3 {[%clk 0:02:06.4]}
15... f5 {[%clk 0:01:24.1]} 16. Rxd5 {[%clk 0:01:34.3]} 16... exd5 {[%clk
0:01:19.1]} 17. Nc3 {[%clk 0:01:25.4]} 17... Qd6 {[%clk 0:01:07.6]} 18. Qe1
{[%clk 0:01:19.3]} 18... d4 {[%clk 0:01:06.6]} 19. Ne2 {[%clk 0:01:12.8]} 19...
O-O-O {[%clk 0:01:00.8]} 20. Nf4 {[%clk 0:01:08]} 20... g5 {[%clk 0:00:57.8]}
21. Nh5 {[%clk 0:01:08.2]} 21... Bf8 {[%clk 0:00:50]} 22. b4 {[%clk 0:01:03.2]}
22... Kb8 {[%clk 0:00:32.6]} 23. bxc5 {[%clk 0:01:01]} 23... Qxc5 {[%clk
0:00:33.5]} 24. a4 {[%clk 0:00:56]} 24... Bc6 {[%clk 0:00:32.7]} 25. Nf6 {[%clk
0:00:52.1]} 25... Bg7 {[%clk 0:00:30]} 26. Ba3 {[%clk 0:00:52]} 26... Qa5 {[%clk
0:00:25.5]} 27. Nh5 {[%clk 0:00:25.6]} 27... Qd5 {[%clk 0:00:22.7]} 28. Be4
{[%clk 0:00:20.7]} 28... fxe4 {[%clk 0:00:21.1]} 29. Nxg7 {[%clk 0:00:21.6]}
29... e3 {[%clk 0:00:21.2]} 30. f3 {[%clk 0:00:21.5]} 0-1

[Event "*** SCC Grand Prix: Titled Tuesday Blitz"]
[Site "Chess.com"]
[Date "2020.07.14"]
[Round "2"]
[White "dodorox"]
[Black "AsaHoffmann"]
[Result "1/2-1/2"]
[WhiteElo "2122"]
[BlackElo "2393"]
[TimeControl "180+1"]
[EndTime "10:17:19 PDT"]
[Termination "Game drawn - insufficient material"]

1. d4 {[%clk 0:03:00.9]} 1... Nf6 {[%clk 0:02:58.7]} 2. c4 {[%clk 0:02:59.9]}
2... c5 {[%clk 0:02:57.8]} 3. d5 {[%clk 0:02:59.6]} 3... e5 {[%clk 0:02:56.2]}
4. Nc3 {[%clk 0:02:55.6]} 4... d6 {[%clk 0:02:55.8]} 5. g3 {[%clk 0:02:54.6]}
5... Be7 {[%clk 0:02:55]} 6. Bg2 {[%clk 0:02:54.6]} 6... O-O {[%clk 0:02:54.4]}
7. e4 {[%clk 0:02:54.1]} 7... Na6 {[%clk 0:02:53.8]} 8. Nge2 {[%clk 0:02:49.4]}
8... Ne8 {[%clk 0:02:49.1]} 9. f4 {[%clk 0:02:36.4]} 9... Bf6 {[%clk 0:02:43.4]}
10. f5 {[%clk 0:02:32.4]} 10... Bd7 {[%clk 0:02:42.1]} 11. Be3 {[%clk 0:02:20]}
11... Nec7 {[%clk 0:02:39.9]} 12. a4 {[%clk 0:02:06.8]} 12... Bg5 {[%clk
0:02:38.4]} 13. Bxg5 {[%clk 0:01:56.6]} 13... Qxg5 {[%clk 0:02:37.3]} 14. Qd2
{[%clk 0:01:56.9]} 14... h6 {[%clk 0:02:27]} 15. Qxg5 {[%clk 0:01:41.1]} 15...
hxg5 {[%clk 0:02:26.5]} 16. g4 {[%clk 0:01:35.9]} 16... Nb4 {[%clk 0:02:25.1]}
17. Kd2 {[%clk 0:01:24.9]} 17... b6 {[%clk 0:02:24.5]} 18. h4 {[%clk 0:01:22.7]}
18... gxh4 {[%clk 0:02:22.2]} 19. Rxh4 {[%clk 0:01:21.9]} 19... f6 {[%clk
0:02:21.9]} 20. Rah1 {[%clk 0:01:18.8]} 20... Kf7 {[%clk 0:02:20.2]} 21. Rh7
{[%clk 0:01:15.8]} 21... a6 {[%clk 0:02:18.1]} 22. Ng3 {[%clk 0:01:02.4]} 22...
b5 {[%clk 0:02:14.8]} 23. axb5 {[%clk 0:00:22.2]} 23... axb5 {[%clk 0:02:14.2]}
24. cxb5 {[%clk 0:00:21]} 24... Nxb5 {[%clk 0:02:12.3]} 25. Nxb5 {[%clk
0:00:19.5]} 25... Bxb5 {[%clk 0:02:11.7]} 26. Nh5 {[%clk 0:00:19.6]} 26... Rg8
{[%clk 0:02:10.6]} 27. g5 {[%clk 0:00:20]} 27... fxg5 {[%clk 0:02:06.5]} 28. f6
{[%clk 0:00:20]} 28... Nd3 {[%clk 0:01:53]} 29. fxg7 {[%clk 0:00:16.3]} 29...
Nf4 {[%clk 0:01:50.2]} 30. Nxf4 {[%clk 0:00:15.9]} 30... exf4 {[%clk 0:01:49.1]}
31. Bh3 {[%clk 0:00:15.7]} 31... Rxg7 {[%clk 0:01:42.2]} 32. Be6+ {[%clk
0:00:15.6]} 32... Kf6 {[%clk 0:01:41.9]} 33. R1h6+ {[%clk 0:00:14.3]} 33... Ke5
{[%clk 0:01:37.9]} 34. Rxg7 {[%clk 0:00:13.9]} 34... f3 {[%clk 0:01:36.2]} 35.
Rxg5+ {[%clk 0:00:12.8]} 35... Kd4 {[%clk 0:01:33.8]} 36. Rf5 {[%clk 0:00:12.4]}
36... Be2 {[%clk 0:01:32.3]} 37. Rh3 {[%clk 0:00:07.9]} 37... Ra2 {[%clk
0:01:30.8]} 38. Kc2 {[%clk 0:00:07.6]} 38... c4 {[%clk 0:01:30.2]} 39. Rhxf3
{[%clk 0:00:07]} 39... Bd3+ {[%clk 0:01:26.2]} 40. Rxd3+ {[%clk 0:00:04.8]}
40... cxd3+ {[%clk 0:01:25.5]} 41. Kb3 {[%clk 0:00:05.5]} 41... Ra1 {[%clk
0:01:24.2]} 42. Rf2 {[%clk 0:00:05.2]} 42... Ke3 {[%clk 0:01:23.7]} 43. Rh2
{[%clk 0:00:05.5]} 43... d2 {[%clk 0:01:23]} 44. Rxd2 {[%clk 0:00:05.4]} 44...
Kxd2 {[%clk 0:01:22.6]} 45. Kb4 {[%clk 0:00:05.9]} 45... Rb1 {[%clk 0:01:21.6]}
46. Kb5 {[%clk 0:00:04.9]} 46... Kd3 {[%clk 0:01:20.7]} 47. Kc6 {[%clk
0:00:02.9]} 47... Kxe4 {[%clk 0:01:20]} 48. Kxd6 {[%clk 0:00:03.3]} 48... Rxb2
{[%clk 0:01:19.6]} 49. Ke7 {[%clk 0:00:03.7]} 49... Rd2 {[%clk 0:01:18.7]} 50.
d6 {[%clk 0:00:03.8]} 50... Rxd6 {[%clk 0:01:18]} 51. Kxd6 {[%clk 0:00:03.7]}
1/2-1/2

[Event "*** SCC Grand Prix: Titled Tuesday Blitz"]
[Site "Chess.com"]
[Date "2020.07.14"]
[Round "2"]
[White "Nf3c5"]
[Black "ChessWarrior7197"]
[Result "0-1"]
[WhiteElo "2526"]
[BlackElo "2858"]
[TimeControl "180+1"]
[EndTime "10:17:20 PDT"]
[Termination "ChessWarrior7197 won on time"]

1. e4 {[%clk 0:03:00.3]} 1... c5 {[%clk 0:02:59.3]} 2. b3 {[%clk 0:02:59.7]}
2... Nf6 {[%clk 0:02:57.6]} 3. e5 {[%clk 0:02:56.4]} 3... Nd5 {[%clk 0:02:57.7]}
4. Bb2 {[%clk 0:02:56.2]} 4... g6 {[%clk 0:02:58.1]} 5. Qf3 {[%clk 0:02:55.4]}
5... Nb6 {[%clk 0:02:47.3]} 6. Qg3 {[%clk 0:02:42.6]} 6... Bg7 {[%clk
0:02:46.2]} 7. Nc3 {[%clk 0:02:43.1]} 7... Nc6 {[%clk 0:02:45.7]} 8. f4 {[%clk
0:02:39.3]} 8... d6 {[%clk 0:02:43.3]} 9. Nf3 {[%clk 0:02:34.6]} 9... O-O {[%clk
0:02:41.6]} 10. O-O-O {[%clk 0:02:33.9]} 10... dxe5 {[%clk 0:02:36.4]} 11. Nxe5
{[%clk 0:02:25.2]} 11... Nxe5 {[%clk 0:02:34.5]} 12. fxe5 {[%clk 0:02:26.1]}
12... Bf5 {[%clk 0:02:32.5]} 13. h4 {[%clk 0:02:19.5]} 13... h5 {[%clk
0:02:31.7]} 14. d3 {[%clk 0:02:09]} 14... Nd7 {[%clk 0:02:27]} 15. Ne4 {[%clk
0:01:55.5]} 15... Bxe4 {[%clk 0:02:25.4]} 16. dxe4 {[%clk 0:01:54.3]} 16... Qc7
{[%clk 0:02:24.7]} 17. Bc4 {[%clk 0:01:32]} 17... e6 {[%clk 0:02:13.9]} 18. Rd6
{[%clk 0:01:24]} 18... Rad8 {[%clk 0:02:13.8]} 19. Rhd1 {[%clk 0:01:23.4]} 19...
Nb6 {[%clk 0:02:14.1]} 20. Be2 {[%clk 0:01:11]} 20... Nc8 {[%clk 0:02:11.9]} 21.
Kb1 {[%clk 0:01:02.9]} 21... Qe7 {[%clk 0:01:59.4]} 22. Qf4 {[%clk 0:00:38.6]}
22... a6 {[%clk 0:01:47.2]} 23. g4 {[%clk 0:00:35.8]} 23... hxg4 {[%clk
0:01:44.8]} 24. Bxg4 {[%clk 0:00:34.7]} 24... Qxh4 {[%clk 0:01:44.8]} 25. Qf3
{[%clk 0:00:29.3]} 25... Nxd6 {[%clk 0:01:44.3]} 26. Rh1 {[%clk 0:00:23.2]}
26... Qg5 {[%clk 0:01:32.8]} 27. Qh3 {[%clk 0:00:20.2]} 27... Rfe8 {[%clk
0:01:33.3]} 28. Qh7+ {[%clk 0:00:17.8]} 28... Kf8 {[%clk 0:01:33.6]} 29. exd6
{[%clk 0:00:18.7]} 29... Bxb2 {[%clk 0:01:33.6]} 30. Kxb2 {[%clk 0:00:19.6]}
30... Qf6+ {[%clk 0:01:31.9]} 31. c3 {[%clk 0:00:18.7]} 31... Rxd6 {[%clk
0:01:32.1]} 32. Qh2 {[%clk 0:00:12.5]} 32... Red8 {[%clk 0:01:31.4]} 33. Qh6+
{[%clk 0:00:07.2]} 33... Qg7 {[%clk 0:01:29.6]} 34. Qe3 {[%clk 0:00:05.7]} 34...
Rd2+ {[%clk 0:01:29.4]} 35. Ka3 {[%clk 0:00:06.2]} 35... Kg8 {[%clk 0:01:28.7]}
36. e5 {[%clk 0:00:05.9]} 36... R2d3 {[%clk 0:01:28.4]} 37. Qf4 {[%clk
0:00:06.4]} 37... R3d5 {[%clk 0:01:27.1]} 38. Re1 {[%clk 0:00:06]} 38... c4
{[%clk 0:01:26.1]} 39. b4 {[%clk 0:00:05.9]} 39... Rd3 {[%clk 0:01:25.7]} 40.
Kb2 {[%clk 0:00:05.1]} 40... Qh8 {[%clk 0:01:24.3]} 41. Rf1 {[%clk 0:00:04.1]}
41... Qg7 {[%clk 0:01:24]} 42. Qxc4 {[%clk 0:00:02.3]} 42... Qxe5 {[%clk
0:01:22.1]} 0-1

[Event "*** SCC Grand Prix: Titled Tuesday Blitz"]
[Site "Chess.com"]
[Date "2020.07.14"]
[Round "2"]
[White "volcanoexplorer"]
[Black "Sibelephant"]
[Result "0-1"]
[WhiteElo "2582"]
[BlackElo "3142"]
[TimeControl "180+1"]
[EndTime "10:17:23 PDT"]
[Termination "Sibelephant won on time"]

1. e4 {[%clk 0:03:00.9]} 1... c5 {[%clk 0:02:58.8]} 2. Nf3 {[%clk 0:03:00.8]}
2... e6 {[%clk 0:02:59.3]} 3. d4 {[%clk 0:03:01.1]} 3... cxd4 {[%clk 0:03:00.1]}
4. Nxd4 {[%clk 0:03:02]} 4... Nc6 {[%clk 0:03:00.5]} 5. Be2 {[%clk 0:03:01.8]}
5... Nf6 {[%clk 0:02:54.7]} 6. Nc3 {[%clk 0:03:01.9]} 6... d6 {[%clk 0:02:54]}
7. Be3 {[%clk 0:03:01.5]} 7... a6 {[%clk 0:02:52.8]} 8. O-O {[%clk 0:03:00.1]}
8... Bd7 {[%clk 0:02:51.6]} 9. f4 {[%clk 0:02:58.6]} 9... Be7 {[%clk 0:02:51.6]}
10. Kh1 {[%clk 0:02:58.4]} 10... O-O {[%clk 0:02:51]} 11. Qe1 {[%clk 0:02:58.8]}
11... b5 {[%clk 0:02:50.8]} 12. a3 {[%clk 0:02:37.1]} 12... Qb8 {[%clk 0:02:47]}
13. Qg3 {[%clk 0:02:31]} 13... b4 {[%clk 0:02:47]} 14. axb4 {[%clk 0:02:14.3]}
14... Qxb4 {[%clk 0:02:46.9]} 15. Nxc6 {[%clk 0:01:58.1]} 15... Bxc6 {[%clk
0:02:46.7]} 16. e5 {[%clk 0:01:58.4]} 16... Ne4 {[%clk 0:02:31.6]} 17. Nxe4
{[%clk 0:01:46.6]} 17... Bxe4 {[%clk 0:02:31.6]} 18. f5 {[%clk 0:01:03.8]} 18...
Bxf5 {[%clk 0:02:30.8]} 19. Bh6 {[%clk 0:01:00.6]} 19... Bg6 {[%clk 0:02:29.5]}
20. Bf4 {[%clk 0:00:50.6]} 20... dxe5 {[%clk 0:01:53.4]} 21. Bxe5 {[%clk
0:00:51]} 21... a5 {[%clk 0:01:41.6]} 22. Bc3 {[%clk 0:00:45.5]} 22... Qh4
{[%clk 0:01:37.2]} 23. Qxh4 {[%clk 0:00:17.2]} 23... Bxh4 {[%clk 0:01:37]} 24.
Bxa5 {[%clk 0:00:15.5]} 24... Bxc2 {[%clk 0:01:36.3]} 25. Bc3 {[%clk 0:00:15.7]}
25... Be4 {[%clk 0:01:28.4]} 26. Rad1 {[%clk 0:00:05]} 26... Rfd8 {[%clk
0:01:16.1]} 27. Rxd8+ {[%clk 0:00:04.7]} 27... Bxd8 {[%clk 0:01:16.2]} 28. Rd1
{[%clk 0:00:02.9]} 28... Bf6 {[%clk 0:01:11.4]} 29. Bxf6 {[%clk 0:00:02.1]}
29... gxf6 {[%clk 0:01:12.1]} 30. Kg1 {[%clk 0:00:02.3]} 30... Kf8 {[%clk
0:01:05.1]} 31. Rd2 {[%clk 0:00:02.8]} 31... Ke7 {[%clk 0:01:05.2]} 32. Kf2
{[%clk 0:00:03.5]} 32... f5 {[%clk 0:01:05.8]} 33. g3 {[%clk 0:00:03.8]} 33...
Ra1 {[%clk 0:01:02.5]} 34. Ke3 {[%clk 0:00:02.5]} 34... e5 {[%clk 0:01:02.8]}
35. b4 {[%clk 0:00:02.7]} 35... Ra3+ {[%clk 0:01:02.1]} 36. Kf2 {[%clk
0:00:02.8]} 36... Bb7 {[%clk 0:01:02.1]} 37. b5 {[%clk 0:00:03]} 37... e4 {[%clk
0:01:02.6]} 38. Rb2 {[%clk 0:00:02.6]} 38... e3+ {[%clk 0:01:03.1]} 39. Ke1
{[%clk 0:00:02.4]} 39... Ra1+ {[%clk 0:01:03.3]} 40. Bd1 {[%clk 0:00:01.6]}
40... Bf3 {[%clk 0:01:03.9]} 0-1

[Event "*** SCC Grand Prix: Titled Tuesday Blitz"]
[Site "Chess.com"]
[Date "2020.07.14"]
[Round "2"]
[White "annazero"]
[Black "sertalzin"]
[Result "1-0"]
[WhiteElo "2347"]
[BlackElo "1952"]
[TimeControl "180+1"]
[EndTime "10:17:23 PDT"]
[Termination "annazero won by resignation"]

1. d4 {[%clk 0:03:00.9]} 1... d5 {[%clk 0:02:59.3]} 2. Bf4 {[%clk 0:03:00.1]}
2... Nf6 {[%clk 0:02:56.9]} 3. e3 {[%clk 0:03:00.1]} 3... g6 {[%clk 0:02:56.8]}
4. Nd2 {[%clk 0:02:54.4]} 4... Bg7 {[%clk 0:02:56.6]} 5. Bd3 {[%clk 0:02:54.2]}
5... O-O {[%clk 0:02:56]} 6. Ngf3 {[%clk 0:02:54.2]} 6... b6 {[%clk 0:02:53.6]}
7. Qe2 {[%clk 0:02:52.3]} 7... Bb7 {[%clk 0:02:53]} 8. O-O {[%clk 0:02:49.1]}
8... c5 {[%clk 0:02:52.8]} 9. c3 {[%clk 0:02:48.1]} 9... Nc6 {[%clk 0:02:51.9]}
10. Ne5 {[%clk 0:02:47]} 10... Nd7 {[%clk 0:02:50.7]} 11. Nxd7 {[%clk
0:02:42.5]} 11... Qxd7 {[%clk 0:02:50.2]} 12. dxc5 {[%clk 0:02:43.4]} 12... bxc5
{[%clk 0:02:49.3]} 13. e4 {[%clk 0:02:43.5]} 13... d4 {[%clk 0:02:45.7]} 14.
Rac1 {[%clk 0:02:33.6]} 14... e5 {[%clk 0:02:44.1]} 15. Bg3 {[%clk 0:02:28.7]}
15... f5 {[%clk 0:02:35.6]} 16. Rfd1 {[%clk 0:02:01.9]} 16... f4 {[%clk
0:02:32.3]} 17. Bh4 {[%clk 0:02:01.4]} 17... h6 {[%clk 0:02:31.8]} 18. f3 {[%clk
0:02:01]} 18... g5 {[%clk 0:02:31.3]} 19. Bf2 {[%clk 0:02:00.8]} 19... h5 {[%clk
0:02:17.3]} 20. Nb3 {[%clk 0:01:59.2]} 20... Qe7 {[%clk 0:02:05.6]} 21. cxd4
{[%clk 0:01:56.4]} 21... cxd4 {[%clk 0:02:01.4]} 22. Nc5 {[%clk 0:01:52.4]}
22... Bc8 {[%clk 0:01:31.3]} 23. Bc4+ {[%clk 0:01:51.9]} 23... Kh8 {[%clk
0:01:29.5]} 24. Bd5 {[%clk 0:01:52.2]} 24... Qd6 {[%clk 0:01:11.2]} 25. Qb5
{[%clk 0:01:44]} 25... Rf6 {[%clk 0:00:58.6]} 26. a3 {[%clk 0:01:26.8]} 26...
Rb8 {[%clk 0:00:57.4]} 27. Qe2 {[%clk 0:01:26.5]} 27... Ne7 {[%clk 0:00:50.3]}
28. Ba2 {[%clk 0:01:26]} 28... Rg6 {[%clk 0:00:46.3]} 29. Kh1 {[%clk 0:01:23.9]}
29... g4 {[%clk 0:00:40.2]} 30. Bh4 {[%clk 0:01:23.1]} 30... Bf6 {[%clk
0:00:39.3]} 31. Bxf6+ {[%clk 0:00:58.9]} 31... Qxf6 {[%clk 0:00:38.2]} 32. Nd3
{[%clk 0:00:59.1]} 32... gxf3 {[%clk 0:00:35.1]} 33. gxf3 {[%clk 0:00:54.8]}
33... Bh3 {[%clk 0:00:33.6]} 34. Rg1 {[%clk 0:00:52.7]} 34... Rbg8 {[%clk
0:00:31.9]} 35. Bxg8 {[%clk 0:00:51.1]} 35... Nxg8 {[%clk 0:00:24.7]} 36. Rxg6
{[%clk 0:00:49.3]} 36... Qxg6 {[%clk 0:00:23.7]} 37. Nxe5 {[%clk 0:00:49.5]}
37... Qd6 {[%clk 0:00:20.1]} 38. Nf7+ {[%clk 0:00:48.8]} 1-0